bitfinex-derivatives/quotes_ETHF0:USTF0_20250928
["timestamp","ask_amount","ask_price","bid_price","bid_amount"]
[1759097577363,0.5214,4091.5,4091.0,3.42]
[1759097577364,0.333,4091.5,4091.4,0.43978]
[1759097577669,3.2078,4091.7,4091.6,0.5586]
[1759097577962,0.333,4092.0,4091.9,0.5586]
[1759097578863,0.5214,4092.2,4091.8,0.43973]
[1759097579070,0.8544,4092.2,4092.1,0.5586]
[1759097579458,0.333,4092.2,4092.1,3.7664]
[1759097579662,0.96099,4093.2,4092.5,0.43965]
[1759097579865,3.5408,4093.3,4092.5,0.7708]
[1759097580168,0.5214,4092.5,4091.6,4.40980237]
[1759097580356,0.5214,4092.3,4092.1,0.4397]
[1759097580561,0.333,4092.4,4092.3,0.5586]
[1759097581665,0.332,4092.9,4092.7,0.43964]
[1759097581865,0.332,4092.9,4092.8,0.5586]
[1759097582159,0.8534,4092.9,4092.8,0.5586]
[1759097582359,0.5214,4092.8,4092.2,3.2078]
[1759097582767,0.332,4092.9,4092.3,0.5586]
[1759097582966,0.332,4092.9,4092.4,0.43967]
[1759097583169,0.5214,4092.8,4092.5,0.43966]
[1759097583371,0.5214,4092.8,4092.6,0.5586]
[1759097583672,0.5214,4092.8,4092.7,0.5586]
[1759097583876,0.332,4092.9,4092.8,0.5586]
[1759097584068,1.29302,4092.9,4092.3,0.99828]
[1759097584270,0.332,4092.9,4092.2,3.7664]
[1759097584564,0.43964,4092.7,4092.2,3.7664]
[1759097584969,0.5214,4092.8,4092.2,3.2078]
[1759097585166,0.5214,4092.3,4091.9,0.43972]
[1759097585365,0.332,4092.2,4092.1,0.5586]
[1759097587065,3.2078,4093.0,4092.8,0.43963]
[1759097587268,0.332,4092.9,4092.8,0.99823]
[1759097588274,0.8534,4092.9,4092.8,0.5586]
[1759097589272,0.332,4092.9,4092.8,0.5586]
[1759097591670,0.5279,4092.8,4092.7,0.43964]
[1759097591865,0.332,4092.9,4092.5,0.43965]
[1759097592170,0.5279,4092.8,4092.5,0.43965]
[1759097592366,0.5279,4092.8,4092.4,3.2078]
[1759097592566,0.5279,4092.5,4092.4,3.7492]
[1759097592777,0.8579,4092.5,4092.4,3.2078]
[1759097593672,1.0619,4092.5,4092.4,3.2078]
[1759097594871,0.97366,4092.5,4091.9,4.18892]
[1759097595073,0.5279,4092.4,4091.9,0.5414]
[1759097595266,4.18147,4092.5,4091.9,0.5414]
[1759097595472,0.5279,4092.4,4091.5,0.2122]
[1759097595673,0.96757,4092.4,4091.8,0.43973]
[1759097595971,0.5279,4092.2,4091.8,0.98113]
[1759097596273,0.5279,4092.0,4091.7,0.98115]
[1759097596474,0.33,4092.1,4091.7,0.98115]
[1759097596674,0.5279,4092.0,4091.7,0.98115]
[1759097596869,0.33,4092.1,4091.8,0.43973]
[1759097597374,0.33,4092.1,4091.6,0.5414]
[1759097597574,0.5279,4092.0,4091.8,0.43973]
[1759097597770,0.33,4092.1,4091.8,0.43973]
[1759097597978,0.33,4092.1,4091.7,0.43974]
[1759097598275,0.33,4092.1,4092.0,0.98111]
[1759097598473,0.8579,4092.1,4092.0,0.98111]
[1759097599174,3.2078,4092.5,4092.0,0.7564]
[1759097599369,0.329,4092.4,4091.5,0.215]
[1759097599574,0.4397,4092.2,4091.8,0.43973]
[1759097599774,3.4118,4092.0,4091.8,0.43973]
[1759097600077,0.8569,4091.9,4091.8,0.43973]
[1759097600677,0.329,4091.9,4091.6,0.98115]
[1759097601072,0.5279,4091.8,4091.6,0.98115]
[1759097601272,0.5279,4091.8,4091.6,0.43975]
[1759097601579,0.5279,4091.8,4091.7,0.5414]
[1759097603176,0.5279,4091.8,4091.5,0.43977]
[1759097603377,0.96764,4091.8,4091.0,0.7536]
[1759097603578,0.329,4091.9,4090.9,3.20991159]
[1759097603579,0.212,4091.5,4090.9,3.20991159]
[1759097603882,0.7533,4091.0,4090.9,3.20991159]
[1759097604077,1.0813,4091.0,4090.9,3.20991159]
[1759097605473,1.0813,4091.0,4090.9,0.00211159]
[1759097606479,1.8057,4091.0,4090.9,0.36111159]
[1759097607083,1.8057,4091.0,4090.9,0.00211159]
[1759097607873,4.75137255,4091.0,4090.9,0.00211159]
[1759097608477,9.58525255,4091.0,4090.0,0.5165]
[1759097608782,0.54,4091.0,4090.5,0.5165]
[1759097608986,0.328,4091.0,4090.5,0.2093]
[1759097609282,0.328,4091.0,4090.6,0.5165]
[1759097609580,0.43983,4090.9,4090.6,0.00216045]
[1759097609881,0.43983,4090.9,4090.7,0.5165]
[1759097609882,0.5413,4090.8,4090.7,0.5165]
[1759097610082,0.43985,4090.8,4090.6,0.00216045]
[1759097610385,0.5413,4090.7,4090.6,0.00216045]
[1759097611274,1.2657,4090.7,4090.6,0.00216045]
[1759097611681,1.5927,4090.7,4090.6,0.00216045]
[1759097613177,1.5927,4090.7,4090.6,1.21596045]
[1759097614174,2.42171048,4090.7,4090.6,0.36116045]
[1759097614379,2.42171048,4090.7,4090.6,0.00216045]
[1759097614780,2.42171048,4090.7,4090.6,0.87766045]
[1759097615288,2.42171048,4090.7,4090.6,0.36116045]
[1759097615491,1.52041048,4090.7,4090.6,1.21596045]
[1759097615689,2.42171048,4090.7,4090.6,1.21596045]
[1759097615995,2.42171048,4090.7,4090.6,0.69946045]
[1759097616487,2.42171048,4090.7,4090.6,0.00216045]
[1759097617081,2.42171048,4090.7,4090.6,1.21596045]
[1759097617082,0.6904,4090.7,4090.6,1.21596045]
[1759097617595,1.2317,4090.7,4090.6,1.21596045]
[1759097618293,1.5917,4090.7,4090.6,0.36116045]
[1759097618683,1.5917,4090.7,4090.6,1.21596045]
[1759097618885,0.8673,4090.7,4090.6,1.21596045]
[1759097619084,0.00262521,4090.9,4090.8,1.2138]
[1759097619790,2.42333569,4090.9,4090.8,0.6973]
[1759097620390,2.42333569,4090.9,4090.6,0.44202045]
[1759097620391,1.2657,4090.7,4090.6,0.00216045]
[1759097620593,2.09471048,4090.7,4090.6,1.21596045]
[1759097621091,2.09471048,4090.7,4090.6,0.36116045]
[1759097621588,2.41971048,4090.7,4090.6,0.36116045]
[1759097621787,2.41971048,4090.7,4090.6,1.21596045]
[1759097621987,2.41971048,4090.7,4090.6,0.36116045]
[1759097622391,1.2657,4090.7,4090.6,1.21596045]
[1759097622593,2.41971048,4090.7,4090.6,1.21596045]
[1759097622785,0.00262521,4090.9,4090.7,0.43985]
[1759097623094,0.32762521,4090.9,4090.8,1.2138]
[1759097623489,1.59332521,4090.9,4090.8,0.6973]
[1759097623695,0.69202521,4090.9,4090.8,1.2138]
[1759097623993,1.59332521,4090.9,4090.8,1.2138]
[1759097625394,0.69202521,4090.9,4090.8,1.2138]
[1759097626194,1.23332521,4090.9,4090.8,1.2138]
[1759097626582,1.59332521,4090.9,4090.8,1.2138]
[1759097626988,0.69202521,4090.9,4090.8,1.2138]
[1759097627587,0.69202521,4090.9,4090.8,0.359]
[1759097627588,1.59332521,4090.9,4090.8,0.359]
[1759097628492,1.59332521,4090.9,4090.8,0.8755]
[1759097628790,1.2657,4090.7,4090.6,0.00216045]
[1759097628997,2.09471048,4090.7,4090.6,0.36116045]
[1759097629790,0.82901048,4090.7,4090.6,1.21596045]
[1759097629997,0.32762521,4090.9,4090.6,1.21596045]
[1759097630198,1.52103569,4090.9,4090.8,1.2138]
[1759097630693,2.42233569,4090.9,4090.8,1.2138]
[1759097631594,1.59332521,4090.9,4090.8,1.2138]
[1759097631795,2.42233569,4090.9,4090.8,1.2138]
[1759097632795,0.32662521,4090.9,4090.8,1.2138]
[1759097633400,0.32662521,4090.9,4090.8,1.65364]
[1759097633801,0.32662521,4090.9,4090.8,6.65364]
[1759097634695,0.32662521,4090.9,4090.8,1.2138]
[1759097635007,0.67522521,4090.9,4090.8,1.2138]
[1759097636100,0.32662521,4090.9,4090.8,1.2138]
[1759097636903,0.00262521,4090.9,4090.8,1.2138]
[1759097638008,0.85202521,4090.9,4090.8,1.2138]
[1759097638705,0.35122521,4090.9,4090.8,1.2138]
[1759097639002,0.00262521,4090.9,4090.8,1.2138]
[1759097641495,0.5008,4091.6,4090.8,1.2138]
[1759097641496,0.204,4092.0,4091.5,0.2166]
[1759097641801,0.204,4092.0,4091.8,0.6643]
[1759097641802,0.8494,4091.9,4091.8,0.6643]
[1759097642194,0.8494,4091.9,4091.8,1.2067]
[1759097642400,1.1781,4091.9,4091.8,1.2067]
[1759097642596,1.1781,4091.9,4091.5,0.2166]
[1759097642597,1.18072577,4091.9,4091.5,0.2166]
[1759097642900,1.18072577,4091.9,4091.1,0.3318]
[1759097642901,1.1781,4091.2,4091.1,0.3318]
[1759097643096,2.00711048,4091.2,4091.1,0.3318]
[1759097643911,1.3858,4091.0,4090.9,3.2078]
[1759097644312,1.3858,4091.0,4090.6,0.00216045]
[1759097644313,1.61795,4090.7,4090.6,0.00216045]
[1759097644605,2.76796048,4090.7,4090.6,0.00216045]
[1759097646005,7.76796048,4090.7,4090.6,0.00216045]
[1759097648917,1.82573,4090.0,4089.9,3.2078]
[1759097649107,2.97574048,4090.0,4089.9,3.2078]
[1759097649309,2.97574048,4090.0,4089.9,3.5396]
[1759097649513,2.97574048,4090.0,4089.9,0.3318]
[1759097649711,2.53581048,4090.0,4089.9,0.3318]
[1759097650010,2.53581048,4090.0,4089.9,0.3338517]
[1759097650316,1.82731048,4090.0,4089.9,1.2087517]
[1759097650503,0.82901048,4090.0,4089.9,1.2087517]
[1759097650818,1.1781,4090.3,4090.2,0.3318]
[1759097651107,1.4981,4090.3,4090.2,1.2067]
[1759097651310,0.32,4090.3,4090.2,1.2067]
[1759097652617,1.5055,4090.3,4089.9,0.0020517]
[1759097652815,1.5055,4090.3,4089.9,0.3416517]
[1759097652816,1.47941048,4090.0,4089.9,0.3416517]
[1759097653016,1.4834,4090.0,4089.9,0.3416517]
[1759097653218,2.94614048,4090.0,4089.9,0.0020517]
[1759097653613,2.94614048,4090.0,4089.9,0.3416517]
[1759097653918,2.50621048,4090.0,4089.9,0.8679517]
[1759097654106,2.31241048,4090.0,4089.9,0.8679517]
[1759097654516,2.31241048,4090.0,4089.9,1.2200517]
[1759097655413,2.50621048,4090.0,4089.9,0.0020517]
[1759097656213,3.2078,4090.4,4089.9,0.6937517]
[1759097656417,3.2078,4090.4,4090.3,1.218]
[1759097656621,4.6902,4090.4,4090.3,1.218]
[1759097658724,5.51921048,4090.4,4090.3,1.218]
[1759097659219,5.63520048,4090.4,4090.3,0.8659]
[1759097659413,5.95910048,4090.4,4090.3,0.8659]
[1759097659619,5.95910048,4090.4,4090.0,0.5263]
[1759097659825,1.47941048,4090.1,4090.0,0.8659]
[1759097660024,2.31141048,4090.1,4090.0,1.218]
[1759097660217,1.47451048,4090.1,4090.0,1.4275]
[1759097660718,1.14801048,4090.1,4090.0,1.4275]
[1759097660919,0.319,4090.1,4090.0,1.4275]
[1759097661225,0.319,4090.1,4090.0,4.6353]
[1759097661518,0.43983,4090.9,4090.7,0.3521]
[1759097661723,0.43983,4090.9,4090.8,1.218]
[1759097661724,0.8395,4090.9,4090.8,1.218]
[1759097661926,1.4814,4090.9,4090.8,1.218]
[1759097663320,1.4814,4090.9,4090.8,0.3396]
[1759097663524,1.4814,4090.9,4090.5,0.7358]
[1759097663525,1.1634,4090.6,4090.5,1.218]
[1759097663732,2.31041048,4090.6,4090.5,1.218]
[1759097664430,1.4814,4090.6,4090.5,1.218]
[1759097665821,0.318,4090.6,4090.5,1.4154]
[1759097666026,1.03308752,4090.9,4090.7,0.6974]
[1759097666228,0.318,4090.8,4090.7,0.6974]
[1759097666423,1.03308752,4090.9,4090.7,0.6974]
[1759097666631,0.317,4090.8,4090.7,1.1986]
[1759097666927,1.03308752,4090.9,4090.7,1.1986]
[1759097667131,0.317,4090.8,4090.7,1.1986]
[1759097667334,3.2078,4091.5,4090.8,0.5012]
[1759097667535,1.78989752,4091.1,4091.0,1.0533]
[1759097667935,1.78989752,4091.1,4091.0,0.6986]
[1759097668834,1.78989752,4091.1,4091.0,0.1974]
[1759097669028,0.43984,4090.8,4090.7,0.5012]
[1759097669232,4.24088752,4091.0,4090.6,0.5012]
[1759097669538,3.2078,4091.5,4091.4,1.1986]
[1759097669744,3.5248,4091.5,4091.4,1.1986]
[1759097671147,0.317,4091.5,4091.4,1.1986]
[1759097671534,0.00262577,4091.9,4091.8,0.3547]
[1759097671744,0.31962577,4091.9,4091.8,1.1986]
[1759097672738,0.00262577,4091.9,4091.8,1.1986]
[1759097672939,0.00262577,4091.9,4091.8,9.4064]
[1759097676241,1.09937,4091.8,4091.3,0.5012]
[1759097676445,0.43981,4091.2,4091.1,1.1986]
[1759097677341,0.00262577,4091.9,4091.7,0.5012]
[1759097677543,0.44234577,4091.9,4091.8,1.1986]
[1759097678844,0.00262577,4091.9,4091.8,1.1986]
[1759097687345,0.44234577,4091.9,4091.8,1.1986]
[1759097687549,8.93713119,4091.9,4091.8,0.5012]
[1759097688156,0.43976,4091.6,4091.5,0.6986]
[1759097688456,0.75376,4091.6,4091.5,0.6986]
[1759097688846,0.75376,4091.6,4091.5,1.396]
[1759097689549,5.75376,4091.6,4091.5,0.6986]
[1759097690545,1.09946,4091.4,4091.0,0.5521]
[1759097690752,1.09946,4091.4,4091.1,0.5012]
[1759097690753,0.4398,4091.2,4091.1,0.5012]
[1759097690951,3.6476,4091.2,4091.1,0.5012]
[1759097694357,4.68056643,4091.2,4091.1,0.5012]
[1759097695060,3.2078,4091.2,4091.1,1.1902]
[1759097695758,3.5198,4091.2,4091.1,1.1902]
[1759097696663,3.5198,4091.2,4091.1,0.8546]
[1759097696959,3.5198,4091.2,4091.1,0.4999]
[1759097698260,3.5198,4091.2,4091.0,0.1974]
[1759097698261,0.43983,4090.9,4090.8,0.4999]
[1759097698558,0.75183,4090.9,4090.8,0.4999]
[1759097698962,0.43986,4090.6,4090.5,0.6973]
[1759097699261,4.99262643,4090.6,4090.5,0.6973]
[1759097699452,3.5198,4090.6,4090.5,1.3709]
[1759097699855,0.312,4090.6,4090.5,1.3709]
[1759097700655,3.2078,4091.1,4091.0,1.82112]
[1759097701152,0.311,4091.4,4091.2,0.4398]
[1759097701455,0.311,4091.4,4091.3,1.1735]
[1759097702345,0.00262577,4091.9,4091.8,0.6736]
[1759097702551,0.31362577,4091.9,4091.8,1.1735]
[1759097704453,0.00262577,4091.9,4091.8,1.1735]
[1759097705854,3.2078,4092.7,4091.9,1.61322]
[1759097706061,3.2078,4092.7,4092.6,1.1735]
[1759097706260,3.5188,4092.7,4092.6,1.1735]
[1759097706957,3.52117292,4092.7,4092.6,1.1735]
[1759097708663,0.31237292,4092.7,4092.6,1.1735]
[1759097709075,3.64734,4093.7,4093.6,1.1735]
[1759097709268,3.95734,4093.7,4093.6,1.1735]
[1759097709961,3.51977008,4093.7,4093.6,1.17565534]
[1759097710166,0.00197008,4093.7,4093.6,0.50205534]
[1759097711766,0.31197008,4093.7,4093.6,0.50205534]
[1759097712067,3.51977008,4093.7,4093.6,0.50205534]
[1759097712264,0.4217,4093.4,4093.0,0.2078]
[1759097712458,1.09892,4093.5,4092.0,0.2078]
[1759097712459,0.4397,4092.1,4092.0,0.2078]
[1759097712761,0.43974,4091.8,4091.5,0.2065]
[1759097712959,0.43975,4091.7,4091.5,0.2065]
[1759097713157,3.2078,4092.6,4092.5,0.2065]
[1759097713362,0.43965,4092.6,4092.5,0.2096267]
[1759097714264,0.43965,4092.6,4092.5,0.7140267]
[1759097714863,4.06915,4092.6,4092.5,0.0031267]
[1759097715165,3.64745,4092.6,4092.5,0.7140267]
[1759097716159,3.64745,4092.6,4092.5,0.5075267]
[1759097716355,4.06915,4092.6,4092.5,0.0031267]
[1759097717165,4.06915,4092.6,4092.5,0.5075267]
[1759097717368,4.06915,4092.6,4092.5,0.0031267]
[1759097717566,0.43976,4091.6,4091.5,0.2065]
[1759097717760,0.74876,4091.6,4091.5,0.2065]
[1759097718167,0.309,4091.6,4091.5,0.7109]
[1759097718668,0.309,4091.6,4091.5,0.71263546]
[1759097719063,3.64748,4092.4,4092.1,0.5044]
[1759097719260,0.308,4092.3,4092.1,0.5044]
[1759097719570,1.09893,4093.4,4092.1,0.5044]
[1759097719571,0.43964,4092.8,4092.2,0.5044]
[1759097719769,0.308,4092.8,4092.6,0.5044]
[1759097720368,0.308,4092.8,4092.7,0.5044]
[1759097720873,0.308,4093.1,4093.0,0.7109]
[1759097725273,0.733,4093.1,4093.0,0.5044]
[1759097725475,0.308,4093.1,4093.0,0.7252]
[1759097728973,0.308,4093.1,4093.0,1.399]
[1759097729174,0.6474,4093.1,4093.0,1.399]
[1759097729570,0.981,4093.1,4092.6,3.2078]
[1759097729879,0.3394,4092.3,4092.2,0.3277]
[1759097730083,0.6464,4092.3,4092.2,0.8558]
[1759097730573,1.08608,4092.3,4092.2,0.8558]
[1759097730877,0.74668,4092.3,4092.2,0.5281]
[1759097732379,1.17168,4092.3,4092.2,0.5281]
[1759097732574,0.74668,4092.3,4092.2,0.5281]
[1759097733377,0.307,4092.3,4092.2,0.5281]
[1759097733578,0.307,4092.3,4092.2,3.7359]
[1759097733777,0.307,4092.3,4092.2,4.4097]
[1759097734177,0.6464,4092.3,4092.2,1.2019]
[1759097734876,0.307,4092.3,4092.2,1.2019]
[1759097735081,0.307,4092.3,4092.2,4.4097]
[1759097735281,0.6464,4092.3,4092.2,1.2019]
[1759097735886,0.98,4092.3,4092.2,1.2019]
[1759097736181,0.979,4092.3,4092.2,1.2019]
[1759097736685,0.306,4092.3,4092.2,1.2019]
[1759097736983,0.306,4092.3,4092.2,4.4097]
[1759097737179,3.98681,4093.0,4092.9,0.3277]
[1759097737376,4.29281,4093.0,4092.9,1.2019]
[1759097737577,1.08501,4093.0,4092.9,1.2019]
[1759097738386,0.306,4093.0,4092.9,0.5281]
[1759097739390,0.306,4093.0,4092.6,0.5281]
[1759097739776,0.86463,4092.7,4092.6,0.5281]
[1759097739976,0.425,4092.7,4092.1,0.5281]
[1759097740182,0.00197008,4093.7,4093.6,0.5281]
[1759097741596,0.00197008,4093.7,4093.6,5.5281]
[1759097741796,0.00197008,4093.7,4093.6,0.5281]
[1759097742699,0.00197008,4093.7,4093.6,5.5281]
[1759097743900,3.2078,4094.7,4094.6,0.5281]
[1759097744206,3.2078,4095.2,4095.1,0.5281]
[1759097744900,0.74432,4095.5,4095.2,0.5281]
[1759097745098,0.30727316,4095.5,4095.2,0.5281]
[1759097746209,3.2078,4096.4,4095.4,0.43933]
[1759097746398,0.43925,4096.2,4096.0,0.1971]
[1759097746598,0.43925,4096.2,4096.1,0.5281]
[1759097747102,3.2078,4096.4,4096.1,0.5281]
[1759097747299,0.00272094,4096.4,4096.1,0.96735]
[1759097747604,0.00272094,4096.4,4096.2,0.5281]
[1759097747994,0.00272094,4096.4,4096.3,3.7359]
[1759097748398,0.00272094,4096.4,4096.3,8.7359]
[1759097748599,0.00272094,4096.4,4096.3,3.7359]
[1759097749911,3.64691,4097.6,4096.4,0.43923]
[1759097750103,0.43915,4097.3,4096.6,0.5281]
[1759097750607,0.43915,4097.3,4097.0,0.1971]
[1759097750804,0.43915,4097.3,4097.1,0.5281]
[1759097750805,0.303,4097.3,4097.1,0.5281]
[1759097751000,0.30490029,4097.3,4097.1,0.5281]
[1759097751203,0.30490029,4097.3,4097.0,0.1971]
[1759097751404,0.30490029,4097.3,4097.1,0.5281]
[1759097752104,0.30490029,4097.3,4097.0,0.1971]
[1759097752310,0.4269,4097.2,4096.6,0.5281]
[1759097753507,0.74405029,4097.3,4096.6,0.5281]
[1759097753909,0.43916,4097.2,4096.6,0.5281]
[1759097755009,0.30490029,4097.3,4096.6,0.5281]
[1759097755200,0.43918,4097.0,4096.6,0.4958]
[1759097755405,0.30490029,4097.3,4096.6,0.4958]
[1759097755605,0.43917,4097.1,4096.6,0.4958]
[1759097756006,0.30490029,4097.3,4096.6,0.4958]
[1759097756206,0.43919,4096.9,4096.6,0.4958]
[1759097756408,3.64697,4097.1,4096.5,0.1971]
[1759097756606,0.00190029,4097.3,4097.0,0.694]
[1759097756808,0.30490029,4097.3,4097.1,0.4958]
[1759097757708,0.30490029,4097.3,4097.0,0.1982]
[1759097757902,0.30490029,4097.3,4097.1,0.4958]
[1759097758614,0.30490029,4097.3,4097.0,0.1982]
[1759097758908,0.30490029,4097.3,4097.1,0.4958]
[1759097759509,0.30490029,4097.3,4097.0,0.1982]
[1759097759717,0.74405029,4097.3,4097.1,0.4958]
[1759097760111,0.30490029,4097.3,4097.0,0.1982]
[1759097760611,0.30490029,4097.3,4096.5,0.6929]
[1759097760612,4.05876,4097.1,4096.5,0.6929]
[1759097761412,3.6196,4097.1,4096.6,0.4958]
[1759097761606,4.05877,4097.1,4096.5,0.1971]
[1759097761819,3.6196,4097.1,4096.5,0.1971]
[1759097762118,0.43918,4097.0,4096.6,0.4958]
[1759097762307,0.85101,4096.7,4096.6,0.4958]
[1759097762507,0.4118,4096.7,4096.1,0.4958]
[1759097762714,0.4118,4096.4,4095.8,3.2078]
[1759097762916,0.7138,4096.3,4095.8,3.2078]
[1759097763121,1.15305,4096.3,4096.0,0.1982]
[1759097763509,0.43932,4095.7,4095.6,0.4958]
[1759097763910,0.301,4095.8,4095.6,0.4958]
[1759097764110,0.7403,4095.8,4095.6,0.4958]
[1759097764312,0.43931,4095.7,4095.6,0.4958]
[1759097764512,0.301,4095.8,4095.5,0.1971]
[1759097764819,0.43932,4095.6,4095.5,0.6929]
[1759097765017,2.79512,4096.0,4095.5,0.6929]
[1759097765222,0.301,4095.6,4095.5,0.6929]
[1759097766318,0.6371,4095.6,4095.5,1.0262]
[1759097766517,0.9827,4095.6,4095.5,1.0262]
[1759097766818,0.9827,4095.6,4095.5,1.3671]
[1759097767033,0.301,4095.6,4095.5,1.3671]
[1759097768322,2.79512,4096.0,4095.5,5.1971]
[1759097768521,0.301,4096.8,4096.5,0.1982]
[1759097768715,0.301,4096.8,4096.6,0.4958]
[1759097768716,0.43921,4096.7,4096.6,0.4958]
[1759097769313,0.4118,4096.7,4096.1,0.4958]
[1759097769520,0.43924,4096.4,4096.0,0.1982]
[1759097769721,0.301,4096.4,4096.1,0.4958]
[1759097769929,0.43927,4096.2,4096.1,0.4958]
[1759097770226,0.301,4096.4,4096.1,0.4958]
[1759097770227,0.43925,4096.3,4096.1,0.4958]
[1759097770521,0.43927,4096.2,4096.1,0.4958]
[1759097770826,0.43925,4096.3,4096.0,0.1982]
[1759097771124,0.43923,4096.5,4096.1,0.93507]
[1759097771327,0.74023,4096.5,4096.2,0.4958]
[1759097771629,0.74023,4096.5,4096.4,1.17]
[1759097771924,0.301,4096.5,4096.4,1.17]
[1759097772427,0.301,4096.5,4096.4,4.3778]
[1759097773729,0.301,4096.5,4096.4,1.17]
[1759097774031,0.6452,4096.5,4096.4,1.17]
[1759097774222,0.9744,4096.5,4096.4,1.17]
[1759097774820,0.43927,4096.1,4096.0,0.1982]
[1759097775016,0.43927,4096.1,4095.8,3.2078]
[1759097775017,1.52359,4095.9,4095.8,3.2078]
[1759097775230,1.82359,4095.9,4095.8,3.2078]
[1759097775530,1.82359,4095.9,4095.8,3.6932]
[1759097775727,1.11272,4095.6,4095.5,0.4854]
[1759097775924,1.0843,4095.6,4095.5,0.4854]
[1759097776122,1.0843,4095.6,4095.5,1.3409]
[1759097776123,0.3442,4095.6,4095.5,1.3409]
[1759097776318,0.4109,4096.1,4095.5,1.3409]
[1759097776526,0.73923,4096.5,4096.4,1.1467]
[1759097776721,0.73923,4096.5,4096.4,0.4854]
[1759097776722,0.3,4096.5,4096.4,0.4854]
[1759097777224,0.43921,4096.7,4096.4,0.4854]
[1759097777426,0.43921,4096.7,4096.3,3.2078]
[1759097777427,0.73921,4096.7,4096.6,0.4854]
[1759097778323,0.3,4096.7,4096.6,0.4854]
[1759097780127,3.2078,4097.0,4096.6,0.4854]
[1759097780430,3.2078,4097.0,4096.7,0.4854]
[1759097780734,0.00190029,4097.3,4097.0,0.1942]
[1759097780936,0.00190029,4097.3,4097.2,0.4854]
[1759097787430,0.44104029,4097.3,4097.2,0.4854]
[1759097787735,0.00190029,4097.3,4097.2,0.4854]
[1759097788834,0.00190029,4097.3,4097.2,1.1483]
[1759097790331,0.43911,4097.6,4097.5,1.35739971]
[1759097790737,0.298,4097.7,4097.6,1.1622]
[1759097791134,0.7371,4097.7,4097.6,1.1622]
[1759097791334,0.73987171,4097.7,4097.6,1.1622]
[1759097791836,1.43247171,4097.7,4097.6,1.1622]
[1759097794640,1.08577171,4097.7,4097.6,1.1622]
[1759097794943,0.30077171,4097.7,4097.6,1.1622]
[1759097796738,0.73987171,4097.7,4097.6,1.1622]
[1759097798133,0.30077171,4097.7,4097.6,1.1622]
[1759097798332,0.73987171,4097.7,4097.6,1.1622]
[1759097798533,1.43247171,4097.7,4097.5,9.971e-05]
[1759097798838,0.6926,4096.8,4096.7,0.8327]
[1759097799341,0.6926,4096.8,4096.7,1.1622]
[1759097799537,0.3459,4096.8,4096.7,1.1622]
[1759097800344,0.297,4096.9,4096.8,1.1622]
[1759097801140,0.6429,4096.9,4096.8,1.1622]
[1759097805449,0.297,4096.9,4096.8,1.1622]
[1759097806341,0.73618,4096.9,4096.8,1.1622]
[1759097807740,1.42878,4096.9,4096.8,1.1622]
[1759097809444,1.08208,4096.9,4096.8,1.1622]
[1759097811546,1.08208,4096.9,4096.5,1.0269]
[1759097811547,1.53572,4096.6,4096.5,1.0269]
[1759097811740,1.13182,4096.6,4096.5,1.0269]
[1759097811941,1.13182,4096.6,4096.5,1.3564]
[1759097812839,0.78512,4096.6,4096.5,1.3564]
[1759097814742,0.73618,4096.9,4096.8,1.1766]
[1759097815346,0.297,4096.9,4096.8,1.1766]
[1759097816748,0.73314,4097.4,4097.3,0.6796]
[1759097816952,0.73314,4097.4,4097.3,1.1766]
[1759097817546,0.294,4097.4,4097.3,1.1766]
[1759097820053,0.294,4097.4,4097.3,0.6796]
[1759097820851,0.022,4097.9,4097.6,1.1766]
[1759097821051,0.022,4097.9,4097.7,0.4391]
[1759097821257,0.022,4097.9,4097.8,4.3844]
[1759097821949,0.02473952,4097.9,4097.8,4.3844]
[1759097822549,1.10231,4097.6,4097.5,1.0463]
[1759097822743,0.43911,4097.6,4097.5,1.3859]
[1759097822948,0.43909,4097.8,4097.5,0.8889]
[1759097823155,0.43909,4097.8,4097.7,1.1766]
[1759097823353,0.02473952,4097.9,4097.7,0.6796]
[1759097823655,0.02473952,4097.9,4097.8,3.8874]
[1759097823953,0.02473952,4097.9,4097.8,4.3844]
[1759097825154,0.293,4098.6,4098.5,1.3859]
[1759097825351,3.2078,4099.2,4099.1,1.1766]
[1759097825751,0.2075,4100.5,4100.4,0.43881]
[1759097826051,0.69526524,4100.5,4100.4,6.98926541]
[1759097826261,0.69526524,4100.5,4100.4,3.50323511]
[1759097826859,0.20996524,4100.5,4100.4,8.21023511]
[1759097827046,0.00246524,4100.5,4100.4,8.21023511]
[1759097827254,0.6928,4101.0,4100.9,0.43876]
[1759097827448,0.6928,4101.0,4100.9,3.64656]
[1759097827645,0.6928,4101.0,4100.9,3.2078]
[1759097828357,0.69579762,4101.0,4100.9,3.2078]
[1759097832860,0.69579762,4101.0,4100.4,3.21023511]
[1759097832861,0.6662,4100.5,4100.4,3.21023511]
[1759097835571,0.6662,4100.5,4100.4,3.50223511]
[1759097836261,0.1897,4100.5,4100.4,3.50223511]
[1759097836661,0.4765,4100.9,4100.4,9.59926511]
[1759097836961,0.4765,4100.9,4100.8,0.43877]
[1759097837166,0.4765,4100.9,4100.8,0.73077]
[1759097838765,0.1897,4100.5,4100.4,3.64904511]
[1759097839069,0.6662,4100.5,4100.4,3.94104511]
[1759097839764,0.6662,4100.5,4100.4,3.94004511]
[1759097839970,0.1897,4100.5,4100.4,3.94004511]
[1759097840161,0.1897,4100.5,4100.4,8.94004511]
[1759097841067,0.6662,4100.5,4100.4,8.94004511]
[1759097841369,0.6662,4100.5,4100.4,3.94004511]
[1759097841568,0.6662,4100.5,4100.4,3.50123511]
[1759097843569,0.9872,4100.5,4100.4,3.21023511]
[1759097843758,1.3258,4100.5,4100.4,3.21023511]